Service area,Service sub division,TVBC Service,Expense type,Detailed expense type,TVBC account code,Date Paid,Transaction Reference,Nett Value,Supplier Name
Environmental & Regulatory,Regulatory Services,Estates and Economic Development ,Premises related Expenditure,Cleaning and domestic supplies,Contract Cleaning - Non Estates,15/09/2016,191598,-2338.98,Friends Life Company Ltd
"Highways, Roads & Transport",Parking Services,Plan Pol & Transport,Supplies & Services,Services,Professional Fees,15/09/2016,191598,-6014.52,Friends Life Company Ltd
Central Services to the Public,Management & Support Services,Environmental,Transport Related Expenditure,Direct Transport Costs,Diesel,22/09/2016,192561,-1818.73,Wp Group Limited
Central Services to the Public,Management & Support Services,Environmental,Transport Related Expenditure,Direct Transport Costs,Red Derv,22/09/2016,192561,-443.7,Wp Group Limited
Central Services to the Public,Management & Support Services,Environmental,Transport Related Expenditure,Direct Transport Costs,Diesel,22/09/2016,192562,-1508.58,Wp Group Limited
Central Services to the Public,Management & Support Services,Environmental,Transport Related Expenditure,Direct Transport Costs,Red Derv,22/09/2016,192562,-310.59,Wp Group Limited
Central Services,Corporate & Democratic Core,Corporate & Democratic,Supplies & Services,Communications & Computing,Computer Hardware,01/09/2016,191589,-1500,Advanced Business Solutions
Central Services to the Public,Management & Support Services,Estates and Economic Development ,Premises related Expenditure,Energy Costs,Gas,29/09/2016,193121,-591.65,Total Gas & Power Ltd
Environmental & Regulatory,Community Development,Community and Leisure ,Supplies & Services,"Clothes, Uniforms & Laundry",Clothing + Uniforms,15/09/2016,189788,500,Andover Street Pastors
Environmental & Regulatory,Community Development,Community and Leisure ,Supplies & Services,Miscellaneous Expenses,Promotions / Special Events,29/09/2016,193882,500,Andover & District Older People'S Forum
Planning & Development,Economic Development,Estates and Economic Development ,Supplies & Services,Grants & Subscriptions,Grants,21/09/2016,193055,500,Romsey Picture Framing Company Limited
Cultural & Related,Culture & Heritage,Community and Leisure ,Supplies & Services,Miscellaneous Expenses,Booking Of Acts,29/09/2016,193821,500,Lyngo Theatre Company
Cultural & Related,Culture & Heritage,Community and Leisure ,Supplies & Services,Services,Project Consultancy - Policy,22/09/2016,192670,500,Greene Shoots
Environmental & Regulatory,Waste management,Environmental,Supplies & Services,"Equipment, Furniture & Materials",Purchase Equip + Materials,01/09/2016,190572,418.56,Daniels Healthcare Ltd
Central Services to the Public,Elections,Legal & Democratic,Supplies & Services,Services,Training Courses,29/09/2016,193186,421,The Association Of Electoral Administrators
Central Services to the Public,Management & Support Services,Housing and Environmental Health ,Supplies & Services,"Printing, Stationery & General Office Expenses",Photocopying Costs,08/09/2016,191474,421.57,Ricoh Uk Ltd
Environmental & Regulatory,Waste management,Environmental,Transport Related Expenditure,Direct Transport Costs,Repair Materials,29/09/2016,193880,423.97,Hyphose Ltd
Central Services to the Public,Management & Support Services,HR Services,Employees,Indirect Employee Expenses,Temporary Staff,29/09/2016,193401,425,Hays Specialist Recruitment
Central Services to the Public,Management & Support Services,Estates and Economic Development ,Premises related Expenditure,Energy Costs,Gas,29/09/2016,193109,485.77,Total Gas & Power Ltd
Cultural & Related,Culture & Heritage,Community and Leisure ,Supplies & Services,Catering,Non-Contract Catering,29/09/2016,193706,426.11,Carlsberg Uk Ltd
Central Services to the Public,Management & Support Services,Environmental,Transport Related Expenditure,Direct Transport Costs,Red Derv,29/09/2016,193398,488.09,Wp Group Limited
Central Services to the Public,Management & Support Services,Environmental,Supplies & Services,"Clothes, Uniforms & Laundry",Clothing + Uniforms,22/09/2016,192963,430.4,Arco Ltd
Central Services to the Public,Management & Support Services,Estates and Economic Development ,Third Party Payments,Other Establishments,Private Contractors,22/09/2016,192939,525,Ashine Cleaning Services Ltd
Central Services to the Public,Management & Support Services,Community and Leisure ,Supplies & Services,"Printing, Stationery & General Office Expenses",Stationery,15/09/2016,191790,439.8,Bannergroup Ltd
Planning & Development,Development Control,Planning & Building,Supplies & Services,Miscellaneous Expenses,Planning Appeal Costs,15/09/2016,191792,46.95,Bannergroup Ltd
Planning & Development,Planning Policy,Plan Pol & Transport,Supplies & Services,"Printing, Stationery & General Office Expenses",Stationery,15/09/2016,191792,117.9,Bannergroup Ltd
"Highways, Roads & Transport",Highways and roads - maintenance,Plan Pol & Transport,Supplies & Services,"Printing, Stationery & General Office Expenses",Stationery,15/09/2016,191792,98.25,Bannergroup Ltd
"Highways, Roads & Transport",Parking Services,Plan Pol & Transport,Supplies & Services,"Printing, Stationery & General Office Expenses",Stationery,15/09/2016,191792,39.3,Bannergroup Ltd
"Highways, Roads & Transport",Parking Services,Plan Pol & Transport,Supplies & Services,"Printing, Stationery & General Office Expenses",Stationery,15/09/2016,191792,137.55,Bannergroup Ltd
Environmental & Regulatory,Waste management,Environmental,Transport Related Expenditure,Direct Transport Costs,Repair Materials,01/09/2016,191206,444.79,Dennis Eagle Ltd
Planning & Development,Building Control,Planning & Building,Supplies & Services,"Printing, Stationery & General Office Expenses",Photocopying Costs,22/09/2016,193088,445.93,Ricoh Uk Ltd
Cultural & Related,Culture & Heritage,Estates and Economic Development ,Supplies & Services,Miscellaneous Expenses,Waste Collection,22/09/2016,192711,132.59,Suez Recycling And Recovery Uk Ltd
Central Services to the Public,Management & Support Services,Estates and Economic Development ,Supplies & Services,Miscellaneous Expenses,Waste Collection,22/09/2016,192711,315.6,Suez Recycling And Recovery Uk Ltd
Planning & Development,Community Development,Community and Leisure ,Supplies & Services,Grants & Subscriptions,Grants,21/09/2016,193039,545.66,Ampfield Village Hall
Central Services to the Public,Management & Support Services,Legal & Democratic,Supplies & Services,"Printing, Stationery & General Office Expenses",Stationery,15/09/2016,189407,18.72,Bannergroup Ltd
Central Services to the Public,Local Land Charges,Legal & Democratic,Supplies & Services,"Printing, Stationery & General Office Expenses",Stationery,15/09/2016,189407,339.09,Bannergroup Ltd
Central Services to the Public,Elections,Legal & Democratic,Supplies & Services,"Printing, Stationery & General Office Expenses",Stationery,15/09/2016,189407,97.04,Bannergroup Ltd
Central Services to the Public,Management & Support Services,Estates and Economic Development ,Supplies & Services,"Equipment, Furniture & Materials",Equipment Hire,01/09/2016,190901,455,Woosh Washrooms
Central Services to the Public,Management & Support Services,Legal & Democratic,Supplies & Services,"Printing, Stationery & General Office Expenses",Stationery,22/09/2016,191775,432.84,Bannergroup Ltd
Central Services to the Public,Local Land Charges,Legal & Democratic,Supplies & Services,"Printing, Stationery & General Office Expenses",Stationery,22/09/2016,191775,24.5,Bannergroup Ltd
Central Services to the Public,Management & Support Services,Estates and Economic Development ,Premises related Expenditure,Repairs Alterations & Maintenance of Buildings,Building Maint - Non Estates,15/09/2016,192677,464.5,Alarms & Electrical (Devizes) Ltd
Central Services to the Public,Management & Support Services,Legal & Democratic,Supplies & Services,Grants & Subscriptions,Subscriptions,01/09/2016,191389,470,Veale Wasbrough Vizard
External Trading Accounts,Business Parks,Estates and Economic Development ,Premises related Expenditure,Grounds Maintenance Costs,Grounds Maintenance Contracts,22/09/2016,193027,473.19,Landmarks Sustainability Ltd
External Trading Accounts,Business Parks,Estates and Economic Development ,Supplies & Services,Miscellaneous Expenses,Waste Collection,15/09/2016,192637,477.4,Basingstoke Skip Hire & Sthrn Waste Mgt Ltd
Central Services to the Public,Management & Support Services,Environmental,Supplies & Services,"Clothes, Uniforms & Laundry",Clothing + Uniforms,08/09/2016,192038,478.8,Arco Ltd
Central Services to the Public,Management & Support Services,Legal & Democratic,Employees,Indirect Employee Expenses,Advertising Of Vacancies,15/09/2016,192436,480,Association Of Democratic Services Officers
Environmental & Regulatory,Regulatory Services,Housing and Environmental Health ,Supplies & Services,Grants & Subscriptions,Subscriptions,08/09/2016,191048,482.9,Als Environmental Ltd
Environmental & Regulatory,Regulatory Services,Housing and Environmental Health ,Supplies & Services,Services,Professional Fees,01/09/2016,190687,484.95,Biotope Ltd
Cultural & Related,Culture & Heritage,Community and Leisure ,Supplies & Services,Miscellaneous Expenses,Booking Of Acts,29/09/2016,193350,588,Firebrand Music
Housing Services,Homelessness,Housing and Environmental Health ,Supplies & Services,Services,Legal Fees,01/09/2016,190900,595,Cornerstone Barristers
Central Services to the Public,Elections,Legal & Democratic,Supplies & Services,Communications & Computing,Hardware Maintenance,29/09/2016,193667,497.25,Temple Knight Plc
Central Services to the Public,Elections,Legal & Democratic,Supplies & Services,Communications & Computing,Hardware Maintenance,29/09/2016,193668,497.25,Temple Knight Plc
Cultural & Related,Open Spaces,Environmental,Transport Related Expenditure,Direct Transport Costs,External Garages,14/09/2016,192369,264,Bodyshop24
Cultural & Related,Open Spaces,Environmental,Transport Related Expenditure,Direct Transport Costs,Repair Materials,14/09/2016,192369,235.33,Bodyshop24
Cultural & Related,Recreation & Sport,Community and Leisure ,Supplies & Services,Services,Professional Fees,29/09/2016,193070,500,Barrett Corp & Harrington Ltd
Cultural & Related,Recreation & Sport,Community and Leisure ,Supplies & Services,Services,Professional Fees,29/09/2016,193072,500,Barrett Corp & Harrington Ltd
Cultural & Related,Open Spaces,Community and Leisure ,Premises related Expenditure,Grounds Maintenance Costs,Gm - Additional Works,22/09/2016,192660,500,Evergreen Rabbit Control
Environmental & Regulatory,Waste management,Environmental,Employees,Indirect Employee Expenses,Agency Staff - Waged Posts,29/09/2016,193434,502.88,Gi Group Recruitment Ltd
Cultural & Related,Open Spaces,Environmental,Third Party Payments,Other Establishments,Private Contractors,01/09/2016,191201,604.12,Ivan Gibson Agricultural Contractor
Central Services to the Public,Management & Support Services,Legal & Democratic,Supplies & Services,"Printing, Stationery & General Office Expenses",Stationery,15/09/2016,186937,394.96,Bannergroup Ltd
Central Services to the Public,Local Land Charges,Legal & Democratic,Supplies & Services,"Printing, Stationery & General Office Expenses",Stationery,15/09/2016,186937,90.2,Bannergroup Ltd
Central Services to the Public,Elections,Legal & Democratic,Supplies & Services,"Printing, Stationery & General Office Expenses",Stationery,15/09/2016,186937,23.99,Bannergroup Ltd
Central Services to the Public,Elections,Legal & Democratic,Supplies & Services,"Printing, Stationery & General Office Expenses",Postage Costs,15/09/2016,192371,515.7,Financial Data Management Plc
External Trading Accounts,Business Parks,Estates and Economic Development ,Supplies & Services,Communications & Computing,Land Line Telephone Charges,29/09/2016,194002,26.94,Virgin Media Payments Ltd
Cultural & Related,Culture & Heritage,Estates and Economic Development ,Supplies & Services,Communications & Computing,Land Line Telephone Charges,29/09/2016,194002,39.5,Virgin Media Payments Ltd
Cultural & Related,Culture & Heritage,Estates and Economic Development ,Supplies & Services,Communications & Computing,Land Line Telephone Charges,29/09/2016,194002,39.07,Virgin Media Payments Ltd
Central Services to the Public,Management & Support Services,IT,Supplies & Services,Communications & Computing,Communication Links,29/09/2016,194002,26,Virgin Media Payments Ltd
Central Services to the Public,Management & Support Services,IT,Supplies & Services,Communications & Computing,Communication Links,29/09/2016,194002,67,Virgin Media Payments Ltd
Cultural & Related,Recreation & Sport,Community and Leisure ,Supplies & Services,Communications & Computing,Land Line Telephone Charges,29/09/2016,194002,26,Virgin Media Payments Ltd
Cultural & Related,Recreation & Sport,Community and Leisure ,Supplies & Services,Communications & Computing,Land Line Telephone Charges,29/09/2016,194002,13.2,Virgin Media Payments Ltd
Cultural & Related,Recreation & Sport,Community and Leisure ,Supplies & Services,Communications & Computing,Land Line Telephone Charges,29/09/2016,194002,13,Virgin Media Payments Ltd
Cultural & Related,Culture & Heritage,Community and Leisure ,Supplies & Services,Communications & Computing,Communication Links,29/09/2016,194002,74.43,Virgin Media Payments Ltd
"Highways, Roads & Transport",Parking Services,Plan Pol & Transport,Supplies & Services,Communications & Computing,Alarm Lines,29/09/2016,194002,37,Virgin Media Payments Ltd
Central Services to the Public,Management & Support Services,Environmental,Supplies & Services,Communications & Computing,Land Line Telephone Charges,29/09/2016,194002,67.26,Virgin Media Payments Ltd
Central Services to the Public,Emergency Planning,Corporate & Democratic,Supplies & Services,Communications & Computing,Land Line Telephone Charges,29/09/2016,194002,91.06,Virgin Media Payments Ltd
Cultural & Related,Open Spaces,Environmental,Transport Related Expenditure,Direct Transport Costs,Repair Materials,01/09/2016,189209,521.46,T H White Ltd
Environmental & Regulatory,Waste management,Environmental,Supplies & Services,"Equipment, Furniture & Materials",Purchase Equip + Materials,15/09/2016,192040,530,Roland Security Llp
External Trading Accounts,Business Parks,Estates and Economic Development ,Supplies & Services,Communications & Computing,Land Line Telephone Charges,01/09/2016,191529,30.07,Virgin Media Payments Ltd
Cultural & Related,Culture & Heritage,Estates and Economic Development ,Supplies & Services,Communications & Computing,Land Line Telephone Charges,01/09/2016,191529,39.3,Virgin Media Payments Ltd
Cultural & Related,Culture & Heritage,Estates and Economic Development ,Supplies & Services,Communications & Computing,Land Line Telephone Charges,01/09/2016,191529,39.04,Virgin Media Payments Ltd
Central Services to the Public,Management & Support Services,IT,Supplies & Services,Communications & Computing,Communication Links,01/09/2016,191529,26,Virgin Media Payments Ltd
Central Services to the Public,Management & Support Services,IT,Supplies & Services,Communications & Computing,Communication Links,01/09/2016,191529,67,Virgin Media Payments Ltd
Cultural & Related,Recreation & Sport,Community and Leisure ,Supplies & Services,Communications & Computing,Land Line Telephone Charges,01/09/2016,191529,26,Virgin Media Payments Ltd
Cultural & Related,Recreation & Sport,Community and Leisure ,Supplies & Services,Communications & Computing,Land Line Telephone Charges,01/09/2016,191529,17.4,Virgin Media Payments Ltd
Cultural & Related,Recreation & Sport,Community and Leisure ,Supplies & Services,Communications & Computing,Land Line Telephone Charges,01/09/2016,191529,13,Virgin Media Payments Ltd
Cultural & Related,Culture & Heritage,Community and Leisure ,Supplies & Services,Communications & Computing,Communication Links,01/09/2016,191529,74.71,Virgin Media Payments Ltd
"Highways, Roads & Transport",Parking Services,Plan Pol & Transport,Supplies & Services,Communications & Computing,Alarm Lines,01/09/2016,191529,37.06,Virgin Media Payments Ltd
Central Services to the Public,Management & Support Services,Environmental,Supplies & Services,Communications & Computing,Land Line Telephone Charges,01/09/2016,191529,69.97,Virgin Media Payments Ltd
Central Services to the Public,Emergency Planning,Corporate & Democratic,Supplies & Services,Communications & Computing,Land Line Telephone Charges,01/09/2016,191529,91,Virgin Media Payments Ltd
Environmental & Regulatory,Waste management,Environmental,Employees,Indirect Employee Expenses,Agency Staff - Waged Posts,08/09/2016,192076,533.25,Gi Group Recruitment Ltd
Central Services to the Public,Management & Support Services,IT,Supplies & Services,Communications & Computing,Computer Hardware,21/09/2016,192395,534.24,Insight Uk Ltd
Cultural & Related,Culture & Heritage,Estates and Economic Development ,Premises related Expenditure,Energy Costs,Gas,29/09/2016,193099,539.96,Total Gas & Power Ltd
Environmental & Regulatory,Regulatory Services,Housing and Environmental Health ,Supplies & Services,"Equipment, Furniture & Materials",Purchase Equip + Materials,29/09/2016,193701,542.76,Ricoh Uk Ltd
Environmental & Regulatory,Waste management,Environmental,Transport Related Expenditure,Direct Transport Costs,Repair Materials,08/09/2016,191827,543.8,Pitter Commercials Ltd
Central Services to the Public,Local Tax Collection,Revenues,Supplies & Services,Communications & Computing,Computer Software,01/09/2016,191551,545,Northgate Public Services Uk Ltd
Environmental & Regulatory,Waste management,Environmental,Employees,Indirect Employee Expenses,Agency Staff - Waged Posts,08/09/2016,191784,546.75,Gi Group Recruitment Ltd
Cultural & Related,Recreation & Sport,Community and Leisure ,Supplies & Services,Services,Professional Fees,29/09/2016,193071,550,Barrett Corp & Harrington Ltd
Environmental & Regulatory,Regulatory Services,Estates and Economic Development ,Supplies & Services,"Equipment, Furniture & Materials",Purchase Equip + Materials,22/09/2016,193043,556.35,Cjs Portsmouth Ltd
Environmental & Regulatory,Regulatory Services,Estates and Economic Development ,Premises related Expenditure,Water Services,Water And Sewerage Charges,29/09/2016,194024,673.42,Southern Water
Planning & Development,Development Control,Planning & Building,Supplies & Services,Miscellaneous Expenses,Planning Appeal Costs,01/09/2016,191362,690,Cornerstone Barristers
Central Services to the Public,Management & Support Services,Legal & Democratic,Employees,Indirect Employee Expenses,Agency Staff - Waged Posts,01/09/2016,191490,580,Venn Group Ltd
Environmental & Regulatory,Waste management,Environmental,Employees,Indirect Employee Expenses,Agency Staff - Waged Posts,08/09/2016,192077,583.31,Simple Recruitment Services Ltd
Environmental & Regulatory,Waste management,Environmental,Employees,Indirect Employee Expenses,Agency Staff - Waged Posts,22/09/2016,187237,587.25,Gi Group Recruitment Ltd
Central Services to the Public,Management & Support Services,Environmental,Supplies & Services,"Printing, Stationery & General Office Expenses",Photocopying Costs,08/09/2016,191965,593.14,Ricoh Uk Ltd
Cultural & Related,Culture & Heritage,Community and Leisure ,Supplies & Services,Catering,Non-Contract Catering,08/09/2016,192059,597.51,Carlsberg Uk Ltd
Environmental & Regulatory,Street Cleansing (not chargeable to Highways),Environmental,Supplies & Services,"Equipment, Furniture & Materials",Purchase Equip + Materials,22/09/2016,193036,598,Graffiti Removal Ltd
Environmental & Regulatory,Regulatory Services,Estates and Economic Development ,Premises related Expenditure,Water Services,Water And Sewerage Charges,29/09/2016,193697,718.25,Southern Water
Planning & Development,Development Control,Planning & Building,Supplies & Services,Services,Project Consultancy - Policy,22/09/2016,192935,600,Reading Agricultural Consultants Ltd
Planning & Development,Development Control,Planning & Building,Supplies & Services,Services,Project Consultancy - Policy,22/09/2016,192936,600,Reading Agricultural Consultants Ltd
Central Services to the Public,Management & Support Services,Community and Leisure ,Supplies & Services,"Printing, Stationery & General Office Expenses",Stationery,15/09/2016,189411,604.76,Bannergroup Ltd
Cultural & Related,Open Spaces,Environmental,Transport Related Expenditure,Direct Transport Costs,External Garages,01/09/2016,191204,352,T H White Ltd
Cultural & Related,Open Spaces,Environmental,Transport Related Expenditure,Direct Transport Costs,Repair Materials,01/09/2016,191204,257.8,T H White Ltd
Central Services to the Public,Local Tax Collection,Revenues,Supplies & Services,Services,Professional Fees,01/09/2016,191498,625,Inform Cpi Ltd
Planning & Development,Planning Policy,Plan Pol & Transport,Supplies & Services,Services,Legal Fees,01/09/2016,191203,750,Cornerstone Barristers
Planning & Development,Economic Development,Estates and Economic Development ,Supplies & Services,Grants & Subscriptions,Grants,14/09/2016,192567,750,Personal data - Data Protection Act 1998
Planning & Development,Economic Development,Estates and Economic Development ,Supplies & Services,Grants & Subscriptions,Grants,14/09/2016,192568,750,Evie'S Drawer
Planning & Development,Economic Development,Estates and Economic Development ,Supplies & Services,Grants & Subscriptions,Grants,14/09/2016,192569,750,Personal data - Data Protection Act 1998
Planning & Development,Economic Development,Estates and Economic Development ,Supplies & Services,Grants & Subscriptions,Grants,28/09/2016,193845,750,Personal data - Data Protection Act 1998
Planning & Development,Economic Development,Estates and Economic Development ,Supplies & Services,Grants & Subscriptions,Grants,28/09/2016,193892,750,Personal data - Data Protection Act 1998
Central Services to the Public,Management & Support Services,Estates and Economic Development ,Third Party Payments,Other Establishments,Private Contractors,15/09/2016,192394,750,James Roofing Ltd
Central Services to the Public,Management & Support Services,Estates and Economic Development ,Supplies & Services,"Equipment, Furniture & Materials",Purchase Equip + Materials,22/09/2016,193032,639.8,Stocksigns Ltd
Central Services to the Public,Management & Support Services,Legal & Democratic,Employees,Indirect Employee Expenses,Agency Staff - Waged Posts,15/09/2016,192364,640,Venn Group Ltd
Planning & Development,Development Control,Planning & Building,Supplies & Services,Services,Training Courses,01/09/2016,191393,640,Arboricultural Association
Central Services to the Public,Management & Support Services,Environmental,Transport Related Expenditure,Direct Transport Costs,Workshop Consumables,22/09/2016,192441,228.7,M D Services
Central Services to the Public,Management & Support Services,Environmental,Transport Related Expenditure,Direct Transport Costs,Repair Materials,22/09/2016,192441,136.78,M D Services
Central Services to the Public,Management & Support Services,Environmental,Supplies & Services,"Equipment, Furniture & Materials",Purchase Tools,22/09/2016,192441,277.14,M D Services
Cultural & Related,Culture & Heritage,Community and Leisure ,Supplies & Services,Miscellaneous Expenses,Booking Of Acts,29/09/2016,193820,782,Moscow Drug Club
Central Services to the Public,Management & Support Services,IT,Employees,Indirect Employee Expenses,Temporary Staff,15/09/2016,192034,660,Gcs Recruitment Services
Environmental & Regulatory,Waste management,Environmental,Transport Related Expenditure,Direct Transport Costs,Repair Materials,22/09/2016,192427,665.52,Dennis Eagle Ltd
Planning & Development,Economic Development,Estates and Economic Development ,Supplies & Services,Miscellaneous Expenses,Promotions / Special Events,29/09/2016,193978,800,Test Valley Business Awards
Environmental & Regulatory,Community Development,Community and Leisure ,Supplies & Services,"Equipment, Furniture & Materials",Purchase Equip + Materials,15/09/2016,192419,800,Test Valley Community Services
Cultural & Related,Open Spaces,Community and Leisure ,Premises related Expenditure,Grounds Maintenance Costs,Gm - Additional Works,01/09/2016,191594,800,Greenflints
"Highways, Roads & Transport",Public Transport,Plan Pol & Transport,Third Party Payments,Transport Operators in Respect of Concessionary Fares,Voluntary Orgs Reimbursement,01/09/2016,191608,805,Romsey Good Neighbours
Central Services to the Public,Management & Support Services,Environmental,Supplies & Services,"Printing, Stationery & General Office Expenses",Stationery,01/09/2016,189406,562.45,Bannergroup Ltd
Central Services to the Public,Management & Support Services,Environmental,Supplies & Services,"Printing, Stationery & General Office Expenses",Print Consumables,01/09/2016,189406,105.06,Bannergroup Ltd
Central Services to the Public,Management & Support Services,Environmental,Supplies & Services,Communications & Computing,Computer Hardware,01/09/2016,189406,11.94,Bannergroup Ltd
External Trading Accounts,Business Parks,Estates and Economic Development ,Premises related Expenditure,Grounds Maintenance Costs,Gm - Additional Works,22/09/2016,193031,680,The Hunt Group
Cultural & Related,Open Spaces,Community and Leisure ,Premises related Expenditure,Grounds Maintenance Costs,Gm - Additional Works,22/09/2016,192659,695,Intratest Ltd
Central Services to the Public,Elections,Legal & Democratic,Supplies & Services,"Printing, Stationery & General Office Expenses",Postage Costs,15/09/2016,192557,703.7,Financial Data Management Plc
Cultural & Related,Tourism,Estates and Economic Development ,Supplies & Services,Miscellaneous Expenses,Promotions / Special Events,01/09/2016,189752,720,Lifestyle Media Group Ltd
Central Services to the Public,Management & Support Services,Estates and Economic Development ,Third Party Payments,Other Establishments,Private Contractors,15/09/2016,192682,723.7,Alarms & Electrical (Devizes) Ltd
Central Services to the Public,Management & Support Services,IT,Supplies & Services,Communications & Computing,Computer Hardware,22/09/2016,192931,733,Nce Computer Group (Europe) Ltd
Central Services to the Public,Management & Support Services,Estates and Economic Development ,Third Party Payments,Private contractors,Main Contractor Costs,08/09/2016,192094,735,A J Wilsons
Central Services to the Public,Management & Support Services,IT,Supplies & Services,Communications & Computing,Hardware Maintenance,29/09/2016,193057,740.62,Quadrant Security Group Ltd
Environmental & Regulatory,Regulatory Services,Housing and Environmental Health ,Supplies & Services,Grants and subscriptions,Capital Grants,15/09/2016,192702,893,Epw Construction
Planning & Development,Economic Development,Estates and Economic Development ,Supplies & Services,Services,Training Courses,29/09/2016,194019,895,Immediate Action Ltd
Central Services,Corporate & Democratic Core,Corporate & Democratic,Supplies & Services,Services,Professional Advice,22/09/2016,192373,750,Dc Commerical Solicitors
"Highways, Roads & Transport",Public Transport,Plan Pol & Transport,Third Party Payments,Transport Operators in Respect of Concessionary Fares,Voluntary Orgs Reimbursement,01/09/2016,191609,916,Thorngate Village Care Group
Environmental & Regulatory,"Cemetery, Cremation and Mortuary Services",Community and Leisure ,Supplies & Services,Miscellaneous Expenses,National Assist Act Burials,21/09/2016,193045,920,Dunnings Funeral Services
Central Services to the Public,Management & Support Services,Estates and Economic Development ,Supplies & Services,"Printing, Stationery & General Office Expenses",Photocopying Costs,01/09/2016,191470,774.89,Ricoh Uk Ltd
Housing Services,Housing Benefits ,Revenues,Employees,Indirect Employee Expenses,Temporary Staff,22/09/2016,192914,790.25,Eden Brown Ltd
Central Services to the Public,Management & Support Services,Estates and Economic Development ,Supplies & Services,Services,Training Courses,22/09/2016,193173,611.76,Posturite Limited
Central Services to the Public,Management & Support Services,Community and Leisure ,Supplies & Services,Services,Training Courses,22/09/2016,193173,47.06,Posturite Limited
Planning & Development,Planning Policy,Plan Pol & Transport,Supplies & Services,Services,Training Courses,22/09/2016,193173,141.18,Posturite Limited
Cultural & Related,Culture & Heritage,Community and Leisure ,Supplies & Services,Services,Project Consultancy - Policy,08/09/2016,191942,800,Granny Turismo
Central Services to the Public,Management & Support Services,Finance,Supplies & Services,"Printing, Stationery & General Office Expenses",Postage Costs,15/09/2016,191810,804.43,Whistl Uk Ltd
External Trading Accounts,Business Parks,Estates and Economic Development ,Premises related Expenditure,Repairs Alterations & Maintenance of Buildings,Estates premises costs - AMP,15/09/2016,192633,808.68,H Monfared (Builders) Ltd
Cultural & Related,Open Spaces,Environmental,Third Party Payments,Other Establishments,Private Contractors,22/09/2016,193083,982.58,Ivan Gibson Agricultural Contractor
Central Services to the Public,Local Tax Collection,Revenues,Supplies & Services,Services,Professional Fees,01/09/2016,191496,60,Ross & Roberts
Central Services to the Public,Management & Support Services,IT,Employees,Indirect Employee Expenses,Temporary Staff,01/09/2016,191397,825,Gcs Recruitment Services
Central Services to the Public,Management & Support Services,IT,Employees,Indirect Employee Expenses,Temporary Staff,08/09/2016,191781,825,Gcs Recruitment Services
Central Services to the Public,Management & Support Services,IT,Employees,Indirect Employee Expenses,Temporary Staff,22/09/2016,192630,825,Gcs Recruitment Services
Central Services to the Public,Management & Support Services,IT,Employees,Indirect Employee Expenses,Temporary Staff,29/09/2016,193084,825,Gcs Recruitment Services
Central Services to the Public,Management & Support Services,Estates and Economic Development ,Third Party Payments,Other Establishments,Private Contractors,21/09/2016,192676,830,Hi-Maintenance Ltd
Planning & Development,Community Development,Community and Leisure ,Supplies & Services,Grants & Subscriptions,Grants,14/09/2016,192525,1000,C.D Gardening Club
Planning & Development,Community Development,Community and Leisure ,Supplies & Services,Grants & Subscriptions,Grants,14/09/2016,192526,1000,Cruse Bereavement Care
Planning & Development,Economic Development,Estates and Economic Development ,Supplies & Services,Services,Training Courses,15/09/2016,192385,1000,Personal data - Data Protection Act 1998
Cultural & Related,Culture & Heritage,Community and Leisure ,Supplies & Services,Services,Project Consultancy - Policy,01/09/2016,190871,1000,Greene Shoots
Planning & Development,Community Development,Community and Leisure ,Supplies & Services,Grants & Subscriptions,Grants,14/09/2016,192527,1000,Test Valley Arts Foundation
Cultural & Related,Open Spaces,Environmental,Employees,Indirect Employee Expenses,Agency Staff - Waged Posts,15/09/2016,192629,568.88,365 Supply Ltd
Environmental & Regulatory,Street Cleansing (not chargeable to Highways),Environmental,Employees,Indirect Employee Expenses,Agency Staff - Waged Posts,15/09/2016,192629,272.88,365 Supply Ltd
Environmental & Regulatory,Street Cleansing (not chargeable to Highways),Environmental,Supplies & Services,"Equipment, Furniture & Materials",Purchase Equip + Materials,15/09/2016,192671,848.15,Glasdon Uk Ltd
Central Services to the Public,Management & Support Services,Estates and Economic Development ,Supplies & Services,Communications & Computing,Telephone Tracking System,22/09/2016,192402,60,Ctrack Uk Limited
Environmental & Regulatory,Regulatory Services,Estates and Economic Development ,Supplies & Services,Communications & Computing,Telephone Tracking System,22/09/2016,192402,20,Ctrack Uk Limited
Cultural & Related,Open Spaces,Environmental,Supplies & Services,Communications & Computing,Telephone Tracking System,22/09/2016,192402,280,Ctrack Uk Limited
Environmental & Regulatory,Street Cleansing (not chargeable to Highways),Environmental,Supplies & Services,Communications & Computing,Telephone Tracking System,22/09/2016,192402,230,Ctrack Uk Limited
Environmental & Regulatory,Waste management,Environmental,Supplies & Services,Communications & Computing,Telephone Tracking System,22/09/2016,192402,210,Ctrack Uk Limited
Environmental & Regulatory,Waste management,Environmental,Supplies & Services,Communications & Computing,Telephone Tracking System,22/09/2016,192402,20,Ctrack Uk Limited
Central Services to the Public,Management & Support Services,Environmental,Supplies & Services,Communications & Computing,Telephone Tracking System,22/09/2016,192402,30,Ctrack Uk Limited
Central Services to the Public,Management & Support Services,Legal & Democratic,Employees,Indirect Employee Expenses,Agency Staff - Waged Posts,22/09/2016,192915,855,Venn Group Ltd
Central Services to the Public,Management & Support Services,Estates and Economic Development ,Premises related Expenditure,Energy Costs,Gas,29/09/2016,193110,982.44,Total Gas & Power Ltd
Environmental & Regulatory,Regulatory Services,Housing and Environmental Health ,Supplies & Services,Miscellaneous Expenses,Kennel fees,22/09/2016,192920,860,Anton Vets Ltd
Central Services to the Public,Management & Support Services,Estates and Economic Development ,Supplies & Services,"Equipment, Furniture & Materials",Equipment Hire,08/09/2016,192081,862.5,Crown Water & Coffee
Central Services to the Public,Management & Support Services,IT,Supplies & Services,Communications & Computing,Land Line Telephone Charges,01/09/2016,191502,866.4,Virgin Media Payments Ltd
"Highways, Roads & Transport",Highways and roads - maintenance,Plan Pol & Transport,Supplies & Services,"Equipment, Furniture & Materials",Purchase Equip + Materials,29/09/2016,193077,876,Signway Supplies (Datchet Ltd)
Central Services to the Public,Management & Support Services,Estates and Economic Development ,Premises related Expenditure,Repairs Alterations & Maintenance of Buildings,Estates premises costs - AMP,01/09/2016,191161,878.12,Building Integrated Services
Central Services to the Public,Management & Support Services,IT,Supplies & Services,Communications & Computing,Land Line Telephone Charges,29/09/2016,192924,888.2,Virgin Media Payments Ltd
Cultural & Related,Recreation & Sport,Community and Leisure ,Supplies & Services,Services,Professional Fees,15/09/2016,192093,900,Abp Associates Ltd
Cultural & Related,Recreation & Sport,Community and Leisure ,Supplies & Services,Services,Professional Fees,15/09/2016,192532,900,Abp Associates Ltd
Central Services to the Public,Management & Support Services,Legal & Democratic,Employees,Indirect Employee Expenses,Agency Staff - Waged Posts,15/09/2016,191807,910,Venn Group Ltd
Cultural & Related,Recreation & Sport,Estates and Economic Development ,Premises related Expenditure,Water Services,Water And Sewerage Charges,22/09/2016,192947,1100.42,Southern Water
Cultural & Related,Open Spaces,Environmental,Transport Related Expenditure,Direct Transport Costs,Repair Materials,29/09/2016,192443,921.02,Loxston Groundcare Ltd
Planning & Development,Development Control,Planning & Building,Employees,Indirect Employee Expenses,Temporary Staff,15/09/2016,192411,924,Oyster Partnership
Central Services to the Public,Management & Support Services,Finance,Supplies & Services,"Printing, Stationery & General Office Expenses",Postage Costs,29/09/2016,193397,928.89,Whistl Uk Ltd
Environmental & Regulatory,Waste management,Environmental,Employees,Indirect Employee Expenses,Agency Staff - Waged Posts,29/09/2016,193429,938.25,Gi Group Recruitment Ltd
Cultural & Related,Open Spaces,Environmental,Supplies & Services,"Equipment, Furniture & Materials",Purchase Equip + Materials,01/09/2016,190689,1096.2,Rigby Taylor Ltd
Cultural & Related,Tourism,Estates and Economic Development ,Supplies & Services,Grants & Subscriptions,Subscriptions,15/09/2016,192086,1000,Tourism South East
Cultural & Related,Culture & Heritage,Community and Leisure ,Supplies & Services,Services,Project Consultancy - Policy,15/09/2016,192556,1000,Cass Productions Ltd
Planning & Development,Development Control,Planning & Building,Supplies & Services,Services,Project Consultancy - Policy,08/09/2016,191945,1000,Personal data - Data Protection Act 1998
Cultural & Related,Open Spaces,Environmental,Transport Related Expenditure,Direct Transport Costs,Environmental transport costs AMP,15/09/2016,192370,1007.49,New Forest Farm Machinery Ltd
Environmental & Regulatory,Regulatory Services,Estates and Economic Development ,Premises related Expenditure,Water Services,Water And Sewerage Charges,15/09/2016,192713,1256.24,Southern Water
Housing Services,Housing Benefits ,Revenues,Employees,Indirect Employee Expenses,Temporary Staff,15/09/2016,192363,1080.25,Eden Brown Ltd
Central Services to the Public,Management & Support Services,Housing and Environmental Health ,Supplies & Services,Grants & Subscriptions,Subscriptions,08/09/2016,191944,1095,Hqn Ltd
Planning & Development,Economic Development,Estates and Economic Development ,Supplies & Services,Miscellaneous Expenses,Other Miscellaneous Costs,22/09/2016,192943,1109.67,The Means
Environmental & Regulatory,Waste management,Environmental,Employees,Indirect Employee Expenses,Agency Staff - Waged Posts,08/09/2016,192075,1117.07,Simple Recruitment Services Ltd
Planning & Development,Development Control,Planning & Building,Employees,Indirect Employee Expenses,Temporary Staff,15/09/2016,191970,1133,Oyster Partnership
External Trading Accounts,Business Parks,Estates and Economic Development ,Supplies & Services,Miscellaneous Expenses,Other Miscellaneous Costs,22/09/2016,192959,1199,A Prompt Ltd
Central Services to the Public,Management & Support Services,Legal & Democratic,Employees,Indirect Employee Expenses,Agency Staff - Waged Posts,22/09/2016,192916,1200,Venn Group Ltd
Cultural & Related,Culture & Heritage,Estates and Economic Development ,Premises related Expenditure,Repairs Alterations & Maintenance of Buildings,Estates premises costs - AMP,01/09/2016,191533,1200,Rap Industries Ltd/Go-Displays
Cultural & Related,Open Spaces,Community and Leisure ,Premises related Expenditure,Grounds Maintenance Costs,Gm - Additional Works,22/09/2016,192958,1200,Digital Terrain Surveys Llp
Cultural & Related,Recreation & Sport,Community and Leisure ,Premises related Expenditure,Repairs Alterations & Maintenance of Buildings,Estates premises costs - AMP,29/09/2016,193669,1201.56,Gripdeck Uk Llp
Central Services to the Public,Management & Support Services,Finance,Supplies & Services,"Printing, Stationery & General Office Expenses",Postage Costs,22/09/2016,192624,1221.55,Whistl Uk Ltd
Central Services,Corporate & Democratic Core,Corporate & Democratic,Supplies & Services,Services,Training Courses,29/09/2016,192918,1228.5,Cfps
Housing Services,Housing Benefits ,Revenues,Employees,Indirect Employee Expenses,Temporary Staff,08/09/2016,191809,1232.5,Eden Brown Ltd
Central Services to the Public,Management & Support Services,Finance,Supplies & Services,"Printing, Stationery & General Office Expenses",Postage Costs,15/09/2016,192053,1246.69,Whistl Uk Ltd
Central Services to the Public,Management & Support Services,Chief Executive's,Supplies & Services,Services,Project Consultancy - Policy,01/09/2016,191522,1500,Moles Consultancy
Cultural & Related,Recreation & Sport,Community and Leisure ,Supplies & Services,Services,Professional Fees,15/09/2016,192092,1250,Abp Associates Ltd
Cultural & Related,Recreation & Sport,Community and Leisure ,Supplies & Services,Services,Professional Fees,29/09/2016,193073,1255,Barrett Corp & Harrington Ltd
Cultural & Related,Recreation & Sport,Community and Leisure ,Supplies & Services,"Equipment, Furniture & Materials",Purchase Equip + Materials,08/09/2016,191951,1266.5,The Play Inspection Company Ltd
Planning & Development,Development Control,Planning & Building,Supplies & Services,"Printing, Stationery & General Office Expenses",Stationery,15/09/2016,191794,956.4,Bannergroup Ltd
Planning & Development,Development Control,Planning & Building,Supplies & Services,"Printing, Stationery & General Office Expenses",Print Consumables,15/09/2016,191794,312.3,Bannergroup Ltd
Housing Services,Housing Benefits ,Revenues,Employees,Indirect Employee Expenses,Temporary Staff,01/09/2016,191485,1268.75,Eden Brown Ltd
Cultural & Related,Open Spaces,Environmental,Supplies & Services,"Equipment, Furniture & Materials",Purchase Equip + Materials,22/09/2016,191394,1280,Rigby Taylor Ltd
"Highways, Roads & Transport",Public Transport,Plan Pol & Transport,Third Party Payments,Transport Operators in Respect of Concessionary Fares,Voluntary Orgs Reimbursement,08/09/2016,192067,1538.8,Andover Neighbourcare
Housing Services,Housing Benefits ,Revenues,Employees,Indirect Employee Expenses,Temporary Staff,29/09/2016,193446,1283.25,Eden Brown Ltd
Central Services to the Public,Management & Support Services,IT,Supplies & Services,Communications & Computing,Hardware Maintenance,01/09/2016,189793,1295,Nce Computer Group (Europe) Ltd
Central Services to the Public,Local Tax Collection,Revenues,Supplies & Services,Communications & Computing,Software Maintenance,29/09/2016,193349,130,Northgate Public Services Uk Ltd
Central Services to the Public,Local Tax Collection,Revenues,Supplies & Services,Communications & Computing,Software Maintenance,29/09/2016,193349,520,Northgate Public Services Uk Ltd
Central Services to the Public,Local Tax Collection,Revenues,Supplies & Services,Communications & Computing,Software Maintenance,29/09/2016,193349,650,Northgate Public Services Uk Ltd
Central Services to the Public,Management & Support Services,Legal & Democratic,Employees,Indirect Employee Expenses,Agency Staff - Waged Posts,01/09/2016,191488,1368,Venn Group Ltd
Environmental & Regulatory,Regulatory Services,Housing and Environmental Health ,Supplies & Services,Grants and subscriptions,Capital Grants,15/09/2016,192700,1650,Andover Glass Works Ltd
Cultural & Related,Culture & Heritage,Estates and Economic Development ,Premises related Expenditure,Repairs Alterations & Maintenance of Buildings,Estates premises costs - AMP,22/09/2016,193079,1380,Sonic Scaffolding 2000 Ltd
Central Services to the Public,Elections,Legal & Democratic,Supplies & Services,"Printing, Stationery & General Office Expenses",Postage Costs,29/09/2016,193718,1396.85,Financial Data Management Plc
Housing Services,Housing Benefits ,Revenues,Supplies & Services,Communications & Computing,Software Maintenance,29/09/2016,193877,1436.39,Northgate Public Services Uk Ltd
Cultural & Related,Open Spaces,Environmental,Employees,Indirect Employee Expenses,Agency Staff - Waged Posts,22/09/2016,193172,1133.33,365 Supply Ltd
Environmental & Regulatory,Street Cleansing (not chargeable to Highways),Environmental,Employees,Indirect Employee Expenses,Agency Staff - Waged Posts,22/09/2016,193172,305.33,365 Supply Ltd
Central Services to the Public,Local Tax Collection,Revenues,Supplies & Services,Miscellaneous Expenses,All Pay Fees,15/09/2016,192430,1461.01,Allpay Limited
Cultural & Related,Open Spaces,Community and Leisure ,Premises related Expenditure,Grounds Maintenance Costs,Gm - Additional Works,08/09/2016,192089,1478.2,Kingcombe Aquacare Ltd
Cultural & Related,Recreation & Sport,Community and Leisure ,Premises related Expenditure,Repairs Alterations & Maintenance of Buildings,Estates premises costs - AMP,15/09/2016,192691,1478.82,Wolseley Uk Limited
Central Services to the Public,Elections,Legal & Democratic,Supplies & Services,"Printing, Stationery & General Office Expenses",Postage Costs,01/09/2016,191596,1480.32,Royal Mail
Central Services to the Public,Elections,Legal & Democratic,Supplies & Services,"Printing, Stationery & General Office Expenses",Postage Costs,01/09/2016,191597,1.62,Royal Mail
Planning & Development,Development Control,Planning & Building,Supplies & Services,Miscellaneous Expenses,Planning Appeal Costs,22/09/2016,192934,1500,Reading Agricultural Consultants Ltd
Central Services to the Public,Management & Support Services,Legal & Democratic,Employees,Indirect Employee Expenses,Agency Staff - Waged Posts,01/09/2016,191489,1520,Venn Group Ltd
Central Services to the Public,Local Tax Collection,Revenues,Supplies & Services,"Printing, Stationery & General Office Expenses",Postage Costs,22/09/2016,192951,152.44,Royal Mail
Central Services to the Public,Local Tax Collection,Revenues,Supplies & Services,"Printing, Stationery & General Office Expenses",Postage Costs,22/09/2016,192951,609.76,Royal Mail
Housing Services,Housing Benefits ,Revenues,Supplies & Services,"Printing, Stationery & General Office Expenses",Postage Costs,22/09/2016,192951,381.1,Royal Mail
Central Services to the Public,Local Tax Collection,Revenues,Supplies & Services,"Printing, Stationery & General Office Expenses",Postage Costs,22/09/2016,192951,381.09,Royal Mail
Cultural & Related,Culture & Heritage,Community and Leisure ,Premises related Expenditure,Energy Costs,Electricity,15/09/2016,192378,1305.27,Sparsholt College Hampshire
Cultural & Related,Culture & Heritage,Community and Leisure ,Premises related Expenditure,Energy Costs,Gas,15/09/2016,192378,10.67,Sparsholt College Hampshire
Cultural & Related,Culture & Heritage,Community and Leisure ,Premises related Expenditure,Water Services,Water And Sewerage Charges,15/09/2016,192378,254.34,Sparsholt College Hampshire
Cultural & Related,Open Spaces,Environmental,Employees,Indirect Employee Expenses,Agency Staff - Waged Posts,08/09/2016,192036,888,365 Supply Ltd
Environmental & Regulatory,Street Cleansing (not chargeable to Highways),Environmental,Employees,Indirect Employee Expenses,Agency Staff - Waged Posts,08/09/2016,192036,652.13,365 Supply Ltd
Central Services to the Public,Management & Support Services,Finance,Supplies & Services,"Printing, Stationery & General Office Expenses",Postage Costs,01/09/2016,191152,1546.86,Whistl Uk Ltd
Cultural & Related,Culture & Heritage,Community and Leisure ,Supplies & Services,Catering,Non-Contract Catering,22/09/2016,192438,1556.65,Carlsberg Uk Ltd
Cultural & Related,Culture & Heritage,Community and Leisure ,Supplies & Services,Miscellaneous Expenses,Booking Of Acts,15/09/2016,192440,1574.66,Barry Collings Entertainments
Central Services to the Public,Management & Support Services,Plan Pol & Transport,Premises related Expenditure,Repairs Alterations & Maintenance of Buildings,General Repairs,29/09/2016,193720,1582.35,Openreach Bt
Central Services to the Public,Management & Support Services,IT,Supplies & Services,Communications & Computing,Software Maintenance,01/09/2016,187688,1586.64,Konica Minolta Business Soltns (Uk) Ltd
Environmental & Regulatory,Regulatory Services,Housing and Environmental Health ,Supplies & Services,Grants and subscriptions,Capital Grants,15/09/2016,192703,1919,Lifestyle Solutions
Cultural & Related,Culture & Heritage,Community and Leisure ,Supplies & Services,Services,Project Consultancy - Policy,01/09/2016,191363,1600,Wet Picnic
Environmental & Regulatory,Regulatory Services,Housing and Environmental Health ,Supplies & Services,Grants and subscriptions,Capital Grants,15/09/2016,192618,1931,1st Choice Stairlifts Ltd
External Trading Accounts,Business Parks,Estates and Economic Development ,Premises related Expenditure,Repairs Alterations & Maintenance of Buildings,Planned Maintenance - Non Est,22/09/2016,192945,1617.59,Rentokil Initial Uk Ltd
Central Services to the Public,Management & Support Services,IT,Supplies & Services,Communications & Computing,Hardware Maintenance,29/09/2016,193666,1646.4,Storm Technologies
Planning & Development,Development Control,Planning & Building,Employees,Indirect Employee Expenses,Temporary Staff,01/09/2016,191388,1650,Oyster Partnership
Central Services to the Public,Management & Support Services,HR Services,Supplies & Services,Services,External Training Consultants,08/09/2016,191959,2000,Winchester City Council
Planning & Development,Economic Development,Estates and Economic Development ,Supplies & Services,Grants & Subscriptions,Contributions,29/09/2016,193818,2000,Romsey Community School
Cultural & Related,Open Spaces,Environmental,Supplies & Services,"Equipment, Furniture & Materials",Purchase Equip + Materials,22/09/2016,192961,1682.04,Fleet (Line Markers) Ltd
"Highways, Roads & Transport",Highways and roads - maintenance,Plan Pol & Transport,Premises related Expenditure,Repairs Alterations & Maintenance of Buildings,Highways Repairs,29/09/2016,193076,1693,Signway Supplies (Datchet Ltd)
Cultural & Related,Open Spaces,Community and Leisure ,Supplies & Services,"Equipment, Furniture & Materials",Purchase Equip + Materials,29/09/2016,190921,2040,Village Sensation
Cultural & Related,Tourism,Estates and Economic Development ,Premises related Expenditure,Repairs Alterations & Maintenance of Buildings,Planned Maintenance - Non Est,01/09/2016,191050,19.5,Temple Lifts Ltd
Cultural & Related,Culture & Heritage,Estates and Economic Development ,Premises related Expenditure,Repairs Alterations & Maintenance of Buildings,Planned Maintenance - Non Est,01/09/2016,191050,201.5,Temple Lifts Ltd
Cultural & Related,Culture & Heritage,Estates and Economic Development ,Premises related Expenditure,Repairs Alterations & Maintenance of Buildings,Planned Maintenance - Non Est,01/09/2016,191050,19.5,Temple Lifts Ltd
Central Services to the Public,Management & Support Services,Estates and Economic Development ,Premises related Expenditure,Repairs Alterations & Maintenance of Buildings,Planned Maintenance - Non Est,01/09/2016,191050,806,Temple Lifts Ltd
Cultural & Related,Recreation & Sport,Community and Leisure ,Premises related Expenditure,Repairs Alterations & Maintenance of Buildings,Planned Maintenance - Non Est,01/09/2016,191050,403,Temple Lifts Ltd
Cultural & Related,Recreation & Sport,Community and Leisure ,Premises related Expenditure,Repairs Alterations & Maintenance of Buildings,Planned Maintenance - Non Est,01/09/2016,191050,201.5,Temple Lifts Ltd
Cultural & Related,Culture & Heritage,Community and Leisure ,Premises related Expenditure,Repairs Alterations & Maintenance of Buildings,Planned Maintenance - Non Est,01/09/2016,191050,49.42,Temple Lifts Ltd
Environmental & Regulatory,Regulatory Services,Housing and Environmental Health ,Supplies & Services,Miscellaneous Expenses,Kennel fees,22/09/2016,192665,1707.48,Newbury Lodge Kennels
Planning & Development,Development Control,Planning & Building,Employees,Indirect Employee Expenses,Temporary Staff,01/09/2016,191202,1738,Oyster Partnership
Planning & Development,Community Development,Community and Leisure ,Supplies & Services,Grants & Subscriptions,Grants,28/09/2016,193887,2109.03,Andover Mind
Central Services to the Public,Management & Support Services,Environmental,Transport Related Expenditure,Direct Transport Costs,Diesel,08/09/2016,191813,1508.58,Wp Group Limited
Central Services to the Public,Management & Support Services,Environmental,Transport Related Expenditure,Direct Transport Costs,Red Derv,08/09/2016,191813,310.59,Wp Group Limited
Central Services to the Public,Management & Support Services,Estates and Economic Development ,Third Party Payments,Private contractors,Main Contractor Costs,01/09/2016,191200,1800,Andover Glass Works Ltd
Planning & Development,Development Control,Planning & Building,Employees,Indirect Employee Expenses,Post Entry Training,01/09/2016,191039,2167,University Of West Of England
Central Services to the Public,Management & Support Services,IT,Supplies & Services,Services,Training Courses,29/09/2016,193672,1898.4,Qa Limited
Cultural & Related,Recreation & Sport,Community and Leisure ,Supplies & Services,Services,Professional Fees,29/09/2016,193029,1900,Barrett Corp & Harrington Ltd
Planning & Development,Development Control,Planning & Building,Employees,Indirect Employee Expenses,Temporary Staff,22/09/2016,192925,1903,Oyster Partnership
Planning & Development,Development Control,Planning & Building,Employees,Indirect Employee Expenses,Temporary Staff,29/09/2016,193187,1925,Oyster Partnership
Cultural & Related,Open Spaces,Community and Leisure ,Premises related Expenditure,Repairs Alterations & Maintenance of Buildings,Estates premises costs - AMP,08/09/2016,191519,1942.01,Purbeck Civil Engineering Limited
Environmental & Regulatory,Regulatory Services,Housing and Environmental Health ,Supplies & Services,Grants and subscriptions,Capital Grants,15/09/2016,192707,2367.68,J D Codd Ltd
Planning & Development,Community Development,Community and Leisure ,Supplies & Services,Communications & Computing,Computer Software,15/09/2016,192420,2025,Fluent Technology Ltd
Planning & Development,Development Control,Planning & Building,Employees,Indirect Employee Expenses,Temporary Staff,29/09/2016,194025,2476.9,Wessex Planning
Environmental & Regulatory,Regulatory Services,Housing and Environmental Health ,Supplies & Services,Grants and subscriptions,Capital Grants,15/09/2016,192706,2500,Outlook Window Systems Limited
External Trading Accounts,Business Parks,Estates and Economic Development ,Premises related Expenditure,Repairs Alterations & Maintenance of Buildings,Estates premises costs - AMP,22/09/2016,193078,2090.41,Andover Glass Works Ltd
Central Services to the Public,Management & Support Services,Finance,Supplies & Services,"Printing, Stationery & General Office Expenses",Central Postage Allocation,15/09/2016,192376,2533,Pitney Bowes Limited
Central Services to the Public,Management & Support Services,Environmental,Transport Related Expenditure,Direct Transport Costs,Diesel,08/09/2016,191812,1818.73,Wp Group Limited
Central Services to the Public,Management & Support Services,Environmental,Transport Related Expenditure,Direct Transport Costs,Red Derv,08/09/2016,191812,443.7,Wp Group Limited
"Highways, Roads & Transport",Parking Services,Plan Pol & Transport,Premises related Expenditure,Energy Costs,Electricity,29/09/2016,193096,2217.05,Southern Electric
Environmental & Regulatory,Waste management,Environmental,Employees,Indirect Employee Expenses,Agency Staff - Waged Posts,08/09/2016,191783,2225.77,365 Supply Ltd
Environmental & Regulatory,Waste management,Environmental,Transport Related Expenditure,Direct Transport Costs,Repair Materials,22/09/2016,192416,2227.61,Dennis Eagle Ltd
Environmental & Regulatory,Regulatory Services,Housing and Environmental Health ,Supplies & Services,Grants and subscriptions,Capital Grants,14/09/2016,192573,2676.21,Aster Group
Central Services to the Public,Management & Support Services,Environmental,Transport Related Expenditure,Direct Transport Costs,Diesel,29/09/2016,193399,2233.75,Wp Group Limited
Central Services to the Public,Management & Support Services,Environmental,Transport Related Expenditure,Direct Transport Costs,Diesel,22/09/2016,192623,2237.1,Wp Group Limited
Environmental & Regulatory,Waste management,Environmental,Employees,Indirect Employee Expenses,Agency Staff - Waged Posts,08/09/2016,192074,2246.64,365 Supply Ltd
Cultural & Related,Open Spaces,Community and Leisure ,Premises related Expenditure,Repairs Alterations & Maintenance of Buildings,Estates premises costs - AMP,08/09/2016,191549,2275,Maltaward (Barriers) Ltd
Cultural & Related,Open Spaces,Environmental,Supplies & Services,"Equipment, Furniture & Materials",Purchase Equip + Materials,29/09/2016,192957,2314,Rigby Taylor Ltd
Environmental & Regulatory,Regulatory Services,Estates and Economic Development ,Premises related Expenditure,Water Services,Water And Sewerage Charges,29/09/2016,193700,2821.09,Southern Water
Cultural & Related,Open Spaces,Environmental,Transport Related Expenditure,Direct Transport Costs,External Garages,01/09/2016,191132,1200,T H White Ltd
Cultural & Related,Open Spaces,Environmental,Transport Related Expenditure,Direct Transport Costs,Repair Materials,01/09/2016,191132,1243.43,T H White Ltd
Planning & Development,Economic Development,Estates and Economic Development ,Supplies & Services,Grants & Subscriptions,Grants,15/09/2016,192384,2443.8,Heartflood Ltd
Cultural & Related,Open Spaces,Community and Leisure ,Premises related Expenditure,Grounds Maintenance Costs,Gm - Additional Works,08/09/2016,191520,2445,Purbeck Civil Engineering Limited
Cultural & Related,Culture & Heritage,Community and Leisure ,Supplies & Services,Services,Professional Fees,08/09/2016,191811,3000,Spud
Cultural & Related,Culture & Heritage,Community and Leisure ,Supplies & Services,Services,Professional Fees,29/09/2016,194007,2500,Cass Productions Ltd
Environmental & Regulatory,Waste management,Environmental,Employees,Indirect Employee Expenses,Agency Staff - Waged Posts,08/09/2016,192073,2505.14,365 Supply Ltd
Planning & Development,Planning Policy,Plan Pol & Transport,Supplies & Services,Services,Legal Fees,01/09/2016,191364,3065,Cornerstone Barristers
Cultural & Related,Open Spaces,Environmental,Supplies & Services,"Equipment, Furniture & Materials",Purchase Equip + Materials,22/09/2016,191151,2676,Rigby Taylor Ltd
Environmental & Regulatory,Regulatory Services,Housing and Environmental Health ,Supplies & Services,Grants and subscriptions,Capital Grants,15/09/2016,192616,3215.2,P.M Plumbing & Carpentry
Central Services to the Public,Management & Support Services,Environmental,Transport Related Expenditure,Direct Transport Costs,Diesel,15/09/2016,192051,2691.55,Wp Group Limited
External Trading Accounts,Business Parks,Estates and Economic Development ,Supplies & Services,"Equipment, Furniture & Materials",Equipment Hire,29/09/2016,193870,159.11,Woosh Washrooms
Cultural & Related,Tourism,Estates and Economic Development ,Supplies & Services,"Equipment, Furniture & Materials",Equipment Hire,29/09/2016,193870,13.39,Woosh Washrooms
Cultural & Related,Culture & Heritage,Estates and Economic Development ,Supplies & Services,"Equipment, Furniture & Materials",Equipment Hire,29/09/2016,193870,51.43,Woosh Washrooms
Central Services to the Public,Management & Support Services,Estates and Economic Development ,Supplies & Services,"Equipment, Furniture & Materials",Equipment Hire,29/09/2016,193870,1033.96,Woosh Washrooms
Environmental & Regulatory,Regulatory Services,Estates and Economic Development ,Supplies & Services,"Equipment, Furniture & Materials",Equipment Hire,29/09/2016,193870,1082.09,Woosh Washrooms
Cultural & Related,Recreation & Sport,Community and Leisure ,Supplies & Services,"Equipment, Furniture & Materials",Equipment Hire,29/09/2016,193870,13.39,Woosh Washrooms
Cultural & Related,Recreation & Sport,Community and Leisure ,Supplies & Services,"Equipment, Furniture & Materials",Equipment Hire,29/09/2016,193870,197.67,Woosh Washrooms
Cultural & Related,Open Spaces,Community and Leisure ,Supplies & Services,"Equipment, Furniture & Materials",Equipment Hire,29/09/2016,193870,141.96,Woosh Washrooms
Central Services to the Public,Management & Support Services,Estates and Economic Development ,Premises related Expenditure,Water Services,Water And Sewerage Charges,01/09/2016,191482,3242.61,Southern Water
Cultural & Related,Culture & Heritage,Community and Leisure ,Supplies & Services,Miscellaneous Expenses,Booking Of Acts,08/09/2016,191974,2756.66,Lms Worldwide Ltd
Cultural & Related,Open Spaces,Environmental,Supplies & Services,"Equipment, Furniture & Materials",Purchase Equip + Materials,22/09/2016,192454,2778,Rigby Taylor Ltd
Cultural & Related,Recreation & Sport,Estates and Economic Development ,Premises related Expenditure,Water Services,Water And Sewerage Charges,29/09/2016,193719,3375.02,Southern Water
Central Services to the Public,Management & Support Services,Estates and Economic Development ,Third Party Payments,Other Establishments,Private Contractors,15/09/2016,192392,2816.25,Dark Knight Security Ltd
Environmental & Regulatory,Regulatory Services,Housing and Environmental Health ,Supplies & Services,Grants and subscriptions,Capital Grants,15/09/2016,192619,3480.85,Lifestyle Solutions
Central Services to the Public,Management & Support Services,Environmental,Transport Related Expenditure,Direct Transport Costs,Diesel,01/09/2016,191493,2910.57,Wp Group Limited
Environmental & Regulatory,Waste management,Environmental,Employees,Indirect Employee Expenses,Agency Staff - Waged Posts,29/09/2016,193439,3048.3,365 Supply Ltd
Central Services to the Public,Management & Support Services,Environmental,Transport Related Expenditure,Direct Transport Costs,Diesel,22/09/2016,192544,3088.22,Wp Group Limited
Central Services to the Public,Management & Support Services,Estates and Economic Development ,Third Party Payments,Private contractors,Main Contractor Costs,22/09/2016,193080,3100,Sonic Scaffolding 2000 Ltd
External Trading Accounts,Business Parks,Estates and Economic Development ,Premises related Expenditure,Repairs Alterations & Maintenance of Buildings,Estates premises costs - AMP,15/09/2016,192638,3111.01,Options Flooring Ltd
Cultural & Related,Culture & Heritage,Community and Leisure ,Supplies & Services,Miscellaneous Expenses,Booking Of Acts,15/09/2016,192439,3142,Avalon Management Group Ltd
Central Services to the Public,Elections,Legal & Democratic,Supplies & Services,"Printing, Stationery & General Office Expenses",Postage Costs,08/09/2016,191955,3186.88,Royal Mail
Environmental & Regulatory,Regulatory Services,Housing and Environmental Health ,Supplies & Services,Grants and subscriptions,Capital Grants,15/09/2016,192617,3880.2,Northfield Property Solutions Ltd
Planning & Development,Development Control,Planning & Building,Employees,Indirect Employee Expenses,Temporary Staff,15/09/2016,191938,3895,Hampshire Planning Limited
Central Services to the Public,Management & Support Services,Estates and Economic Development ,Third Party Payments,Private contractors,Main Contractor Costs,22/09/2016,193081,3474.22,Hcl Safety Ltd
Planning & Development,Development Control,Planning & Building,Supplies & Services,Services,Project Consultancy - Policy,01/09/2016,191592,3500,Valuation Office Agency
Central Services to the Public,Management & Support Services,Environmental,Transport Related Expenditure,Direct Transport Costs,Diesel,01/09/2016,191135,3527.52,Wp Group Limited
Environmental & Regulatory,Regulatory Services,Housing and Environmental Health ,Supplies & Services,Grants and subscriptions,Capital Grants,15/09/2016,192620,4278.54,Spc Bathrooms Ltd
Central Services to the Public,Management & Support Services,Environmental,Transport Related Expenditure,Direct Transport Costs,Diesel,29/09/2016,193874,3566.85,Wp Group Limited
Central Services to the Public,Management & Support Services,Environmental,Transport Related Expenditure,Direct Transport Costs,Diesel,22/09/2016,192622,3580.8,Wp Group Limited
Central Services to the Public,Management & Support Services,Environmental,Transport Related Expenditure,Direct Transport Costs,Diesel,01/09/2016,191491,3628.44,Wp Group Limited
Environmental & Regulatory,Regulatory Services,Housing and Environmental Health ,Supplies & Services,Grants and subscriptions,Capital Grants,15/09/2016,192708,4425,Bentley Mobility Services
Central Services to the Public,Management & Support Services,Environmental,Transport Related Expenditure,Direct Transport Costs,Diesel,22/09/2016,192543,3723.12,Wp Group Limited
External Trading Accounts,Business Parks,Estates and Economic Development ,Premises related Expenditure,Rents,Rents,15/09/2016,191975,4602.74,Carter Jonas Service Company
Central Services to the Public,Management & Support Services,Estates and Economic Development ,Third Party Payments,Other Establishments,Private Contractors,15/09/2016,192400,3851.25,Dark Knight Security Ltd
Central Services to the Public,Local Land Charges,Legal & Democratic,Supplies & Services,Miscellaneous Expenses,Land Charges Fees,15/09/2016,192043,4694.5,Hampshire County Council
Planning & Development,Planning Policy,Plan Pol & Transport,Supplies & Services,Services,Project Consultancy - Policy,22/09/2016,193082,4000,The Environmental Project Consulting Group
Central Services to the Public,Management & Support Services,Environmental,Transport Related Expenditure,Direct Transport Costs,Diesel,15/09/2016,192050,4026.14,Wp Group Limited
Central Services to the Public,Management & Support Services,Estates and Economic Development ,Third Party Payments,Private contractors,Main Contractor Costs,22/09/2016,193028,4047,Cubicle Systems Ltd
Central Services to the Public,Management & Support Services,Estates and Economic Development ,Supplies & Services,"Equipment, Furniture & Materials",Purchase Materials (Job Cost),22/09/2016,193028,35,Cubicle Systems Ltd
Central Services to the Public,Management & Support Services,IT,Supplies & Services,Communications & Computing,Computer Hardware,15/09/2016,191845,4179,Dell Computer Corporation Ltd
Planning & Development,Economic Development,Estates and Economic Development ,Supplies & Services,Services,Professional Fees,29/09/2016,193693,4250,Gep Environmental Ltd
Central Services to the Public,Management & Support Services,Environmental,Transport Related Expenditure,Direct Transport Costs,Diesel,01/09/2016,190869,4401.21,Wp Group Limited
Environmental & Regulatory,Regulatory Services,Housing and Environmental Health ,Supplies & Services,Grants and subscriptions,Capital Grants,15/09/2016,192699,5582.12,Aster Property
Central Services to the Public,Management & Support Services,Estates and Economic Development ,Third Party Payments,Private contractors,Main Contractor Costs,01/09/2016,191396,4656,Personal data - Data Protection Act 1998
Environmental & Regulatory,Waste management,Environmental,Transport Related Expenditure,Direct Transport Costs,Repair Materials,22/09/2016,192922,4679.68,Dennis Eagle Ltd
Central Services to the Public,Management & Support Services,Estates and Economic Development ,Third Party Payments,Private contractors,Main Contractor Costs,29/09/2016,192383,4726,Personal data - Data Protection Act 1998
Cultural & Related,Recreation & Sport,Community and Leisure ,Premises related Expenditure,Repairs Alterations & Maintenance of Buildings,Estates premises costs - AMP,15/09/2016,192657,4774.87,Sutcliffe Play Ltd
"Highways, Roads & Transport",Parking Services,Plan Pol & Transport,Supplies & Services,Services,Professional Fees,15/09/2016,192362,4996.78,Keyline Chartered Security Ltd
"Highways, Roads & Transport",Highways and roads - maintenance,Plan Pol & Transport,Premises related Expenditure,Repairs Alterations & Maintenance of Buildings,Highways Repairs,15/09/2016,192391,5000,Personal data - Data Protection Act 1998
Central Services to the Public,Management & Support Services,Legal & Democratic,Supplies & Services,Grants & Subscriptions,Subscriptions,15/09/2016,192406,5030,Thomson Reuters
Central Services,Corporate & Democratic Core,Corporate & Democratic,Supplies & Services,Communications & Computing,Computer Hardware,01/09/2016,191590,5181,Advanced Business Solutions
Central Services to the Public,Management & Support Services,Estates and Economic Development ,Third Party Payments,Other Establishments,Private Contractors,22/09/2016,192937,5212,Andover Glass Works Ltd
Cultural & Related,Recreation & Sport,Community and Leisure ,Premises related Expenditure,Repairs Alterations & Maintenance of Buildings,Estates premises costs - AMP,15/09/2016,192658,5318.68,Sutcliffe Play Ltd
Environmental & Regulatory,Street Cleansing (not chargeable to Highways),Environmental,Transport Related Expenditure,Direct Transport Costs,Tyres,22/09/2016,192408,323.22,Ats Euromaster Limited
Environmental & Regulatory,Waste management,Environmental,Transport Related Expenditure,Direct Transport Costs,Tyres,22/09/2016,192408,2237.43,Ats Euromaster Limited
Environmental & Regulatory,Waste management,Environmental,Transport Related Expenditure,Direct Transport Costs,Tyres,22/09/2016,192408,981.72,Ats Euromaster Limited
Central Services to the Public,Management & Support Services,Environmental,Transport Related Expenditure,Direct Transport Costs,Repair Materials,22/09/2016,192408,1827.96,Ats Euromaster Limited
Environmental & Regulatory,Regulatory Services,Housing and Environmental Health ,Supplies & Services,Grants and subscriptions,Capital Grants,14/09/2016,192572,6831.58,Aster Group
Central Services to the Public,Management & Support Services,Estates and Economic Development ,Third Party Payments,Private contractors,Main Contractor Costs,08/09/2016,191789,5725,Personal data - Data Protection Act 1998
Environmental & Regulatory,Waste management,Environmental,Supplies & Services,Miscellaneous Expenses,Recycling Bank Emptying,22/09/2016,192930,5870.18,Fcc Recycling (Uk) Ltd
"Highways, Roads & Transport",Highways and roads - maintenance,Plan Pol & Transport,Premises related Expenditure,Repairs Alterations & Maintenance of Buildings,General Repairs,01/09/2016,191553,5887.68,Clear Channel Uk Ltd
Cultural & Related,Recreation & Sport,Community and Leisure ,Third Party Payments,Private contractors,Main Contractor Costs,29/09/2016,193673,5935,Personal data - Data Protection Act 1998
External Trading Accounts,Business Parks,Estates and Economic Development ,Supplies & Services,Services,Professional Fees,15/09/2016,192613,5448.67,Denton Ukmea Llp
Central Services to the Public,Local Tax Collection,Revenues,Supplies & Services,Communications & Computing,Software Maintenance,15/09/2016,191953,647.69,Northgate Public Services Uk Ltd
Central Services to the Public,Local Tax Collection,Revenues,Supplies & Services,Communications & Computing,Software Maintenance,15/09/2016,191953,2590.75,Northgate Public Services Uk Ltd
Housing Services,Housing Benefits ,Revenues,Supplies & Services,Communications & Computing,Software Maintenance,15/09/2016,191953,1619.22,Northgate Public Services Uk Ltd
Central Services to the Public,Local Tax Collection,Revenues,Supplies & Services,Communications & Computing,Software Maintenance,15/09/2016,191953,1619.22,Northgate Public Services Uk Ltd
Planning & Development,Community Development,Community and Leisure ,Supplies & Services,Grants & Subscriptions,Grants,21/09/2016,193034,8019,Youth In Romsey
Planning & Development,Development Control,Planning & Building,Supplies & Services,Communications & Computing,Computer Software,29/09/2016,193694,6982.5,Idox Software Ltd
Environmental & Regulatory,Regulatory Services,Housing and Environmental Health ,Supplies & Services,Grants and subscriptions,Capital Grants,15/09/2016,192705,8557.47,Lifestyle Solutions
Cultural & Related,Recreation & Sport,Community and Leisure ,Supplies & Services,Services,Professional Fees,22/09/2016,192928,7131.5,Terramech Investigations Ltd
Cultural & Related,Recreation & Sport,Community and Leisure ,Supplies & Services,Services,Professional Fees,01/09/2016,191600,7397.4,Blake Morgan Llp
Cultural & Related,Culture & Heritage,Community and Leisure ,Third Party Payments,Private contractors,Main Contractor Costs,01/09/2016,191495,9000,Hogarth & Jackson
Environmental & Regulatory,Waste management,Environmental,Supplies & Services,Miscellaneous Expenses,Recycling Bank Emptying,22/09/2016,192929,7583.27,Fcc Recycling (Uk) Ltd
Planning & Development,Economic Development,Estates and Economic Development ,Supplies & Services,Grants & Subscriptions,Grants,29/09/2016,194043,9300,Romsey Town Council
Environmental & Regulatory,Regulatory Services,Housing and Environmental Health ,Supplies & Services,Grants and subscriptions,Capital Grants,15/09/2016,192709,9573,Opemed (Europe) Ltd
Cultural & Related,Open Spaces,Community and Leisure ,Premises related Expenditure,Repairs Alterations & Maintenance of Buildings,Estates premises costs - AMP,22/09/2016,192628,8275,Purbeck Civil Engineering Limited
Environmental & Regulatory,Waste management,Environmental,Supplies & Services,"Equipment, Furniture & Materials",Purchase Equip + Materials,08/09/2016,191552,8385.75,Egbert H Taylor & Co Ltd
Planning & Development,Economic Development,Estates and Economic Development ,Supplies & Services,Services,Project Consultancy - Policy,01/09/2016,191402,8415,The Means
Central Services to the Public,Management & Support Services,Plan Pol & Transport,Supplies & Services,"Equipment, Furniture & Materials",Purchase Equip + Materials,01/09/2016,187601,8645.66,Rocon Contractors Ltd
Environmental & Regulatory,Waste management,Environmental,Supplies & Services,"Equipment, Furniture & Materials",Purchase Equip + Materials,08/09/2016,191554,9180,Craemer Uk Ltd
Cultural & Related,Open Spaces,Community and Leisure ,Premises related Expenditure,Repairs Alterations & Maintenance of Buildings,Estates premises costs - AMP,29/09/2016,193710,9405,Purbeck Civil Engineering Limited
Central Services to the Public,Management & Support Services,Plan Pol & Transport,Premises related Expenditure,Repairs Alterations & Maintenance of Buildings,General Repairs,08/09/2016,189804,11913.2,Caroway Building & Civil Engineering
Central Services to the Public,Management & Support Services,Plan Pol & Transport,Premises related Expenditure,Repairs Alterations & Maintenance of Buildings,General Repairs,01/09/2016,191523,15702.28,Irvine Grenson Ltd
Central Services to the Public,Management & Support Services,Plan Pol & Transport,Premises related Expenditure,Repairs Alterations & Maintenance of Buildings,General Repairs,08/09/2016,191770,17474.95,Caroway Building & Civil Engineering
Central Services to the Public,Management & Support Services,Plan Pol & Transport,Premises related Expenditure,Repairs Alterations & Maintenance of Buildings,General Repairs,08/09/2016,191769,17707.7,Caroway Building & Civil Engineering
Cultural & Related,Recreation & Sport,Community and Leisure ,Supplies & Services,Services,Professional Fees,08/09/2016,189517,19569.6,Blake Morgan Llp
Cultural & Related,Recreation & Sport,Community and Leisure ,Supplies & Services,Grants and subscriptions,Capital Grants,22/09/2016,193177,25000,Chilworth Parish Hall Management Committee
Environmental & Regulatory,Regulatory Services,Estates and Economic Development ,Premises related Expenditure,Cleaning and domestic supplies,Contract Cleaning - Non Estates,15/09/2016,191814,12482.12,Friends Life Company Ltd
"Highways, Roads & Transport",Parking Services,Plan Pol & Transport,Supplies & Services,Services,Professional Fees,15/09/2016,191814,32096.88,Friends Life Company Ltd
External Trading Accounts,Business Parks,Estates and Economic Development ,Supplies & Services,Services,Professional Fees,22/09/2016,192960,40920.55,Kier Ventures Ltd
